[Event "Titled Tuesday Blitz October 12 2021"]
[White "Van Foreest, Jorden"]
[Black "Bazarov, Konstantin"]
[WhiteFideId "1039784"]
[BlackFideId "4137000"]
[WhiteElo "2600"]
[BlackElo "2084"]
[Result "1-0"]
[Round "02"]
[TimeControl "180+1"]
[Date "2021.10.12"]
[WhiteClock "0:01:27"]
[BlackClock "0:00:11"]

1. d4 {[%clk 0:03:00]}  d5 {[%clk 0:02:58]} 2. c4 {[%clk 0:03:01]}  c6 {[%clk 0:02:59]} 3. Nf3 {[%clk 0:03:00]}  Nf6 {[%clk 0:02:59]} 4. g3 {[%clk 0:03:00]}  dxc4 {[%clk 0:02:57]} 5. Bg2 {[%clk 0:03:00]}  Nbd7 {[%clk 0:02:57]} 6. O-O {[%clk 0:02:59]}  Nb6 {[%clk 0:02:54]} 7. b3 {[%clk 0:02:58]}  cxb3 {[%clk 0:02:53]} 8. axb3 {[%clk 0:02:57]}  g6 {[%clk 0:02:50]} 9. Nc3 {[%clk 0:02:56]}  Bg7 {[%clk 0:02:49]} 10. e4 {[%clk 0:02:55]}  Bg4 {[%clk 0:02:49]} 11. h3 {[%clk 0:02:53]}  Bxf3 {[%clk 0:02:48]} 12. Bxf3 {[%clk 0:02:54]}  O-O {[%clk 0:02:47]} 13. Be3 {[%clk 0:02:52]}  e5 {[%clk 0:02:44]} 14. dxe5 {[%clk 0:02:51]}  Nfd7 {[%clk 0:02:43]} 15. Be2 {[%clk 0:02:51]}  Bxe5 {[%clk 0:02:37]} 16. Qc2 {[%clk 0:02:49]}  Qf6 {[%clk 0:02:36]} 17. Rac1 {[%clk 0:02:46]}  Rfe8 {[%clk 0:02:29]} 18. Na4 {[%clk 0:02:35]}  Bd4 {[%clk 0:02:20]} 19. Bxd4 {[%clk 0:02:22]}  Qxd4 {[%clk 0:02:19]} 20. Nc3 {[%clk 0:02:23]}  Nf6 {[%clk 0:02:05]} 21. Rfd1 {[%clk 0:02:14]}  Qc5 {[%clk 0:01:56]} 22. Nd5 {[%clk 0:02:12]}  Nxe4 {[%clk 0:01:32]} 23. Nf6+ {[%clk 0:02:10]}  Kf8 {[%clk 0:01:20]} 24. Qxc5+ {[%clk 0:01:54]}  Nxc5 {[%clk 0:01:18]} 25. Nxe8 {[%clk 0:01:54]}  Rxe8 {[%clk 0:01:10]} 26. Bf1 {[%clk 0:01:45]}  Nxb3 {[%clk 0:01:07]} 27. Rc3 {[%clk 0:01:42]}  Na5 {[%clk 0:00:59]} 28. Ra3 {[%clk 0:01:34]}  Re5 {[%clk 0:00:45]} 29. Rda1 {[%clk 0:01:32]}  Nbc4 {[%clk 0:00:42]} 30. Ra4 {[%clk 0:01:31]}  Rc5 {[%clk 0:00:19]} 31. Rc1 {[%clk 0:01:30]}  b6 {[%clk 0:00:17]} 32. Bxc4 {[%clk 0:01:28]}  Kg7 {[%clk 0:00:14]} 33. Rc2 {[%clk 0:01:28]}  b5 {[%clk 0:00:11]} 34. Rxa5 {[%clk 0:01:27]} 1-0


[Site "https://www.chess.com"]

[Event "Titled Tuesday Blitz October 12 2021"]
[White "Yilmaz, Mustafa"]
[Black "Barp, Alberto"]
[WhiteFideId "6302718"]
[BlackFideId "872555"]
[WhiteElo "2518"]
[BlackElo "2229"]
[Result "1-0"]
[Round "02"]
[TimeControl "180+1"]
[Date "2021.10.12"]
[WhiteClock "0:00:19"]
[BlackClock "0:00:08"]

1. c4 {[%clk 0:03:00]}  Nf6 {[%clk 0:02:52]} 2. Nc3 {[%clk 0:03:00]}  e6 {[%clk 0:02:47]} 3. e4 {[%clk 0:03:00]}  c5 {[%clk 0:02:46]} 4. e5 {[%clk 0:02:57]}  Ng8 {[%clk 0:02:45]} 5. d4 {[%clk 0:02:52]}  cxd4 {[%clk 0:02:45]} 6. Qxd4 {[%clk 0:02:53]}  Nc6 {[%clk 0:02:44]} 7. Qf4 {[%clk 0:02:37]}  d6 {[%clk 0:02:32]} 8. Nf3 {[%clk 0:02:32]}  Nge7 {[%clk 0:02:03]} 9. exd6 {[%clk 0:02:00]}  Ng6 {[%clk 0:02:03]} 10. Qe4 {[%clk 0:01:56]}  Bxd6 {[%clk 0:01:58]} 11. Be2 {[%clk 0:01:45]}  O-O {[%clk 0:01:54]} 12. O-O {[%clk 0:01:45]}  a6 {[%clk 0:01:45]} 13. Rd1 {[%clk 0:01:44]}  Qc7 {[%clk 0:01:40]} 14. b3 {[%clk 0:01:26]}  b6 {[%clk 0:01:36]} 15. Bb2 {[%clk 0:01:24]}  Bb7 {[%clk 0:01:36]} 16. Qg4 {[%clk 0:01:20]}  f5 {[%clk 0:01:25]} 17. Qg5 {[%clk 0:01:15]}  Be7 {[%clk 0:01:22]} 18. Qe3 {[%clk 0:01:11]}  Nf4 {[%clk 0:01:18]} 19. Bf1 {[%clk 0:01:01]}  Bc5 {[%clk 0:01:17]} 20. Qe1 {[%clk 0:01:02]}  Rae8 {[%clk 0:01:09]} 21. Rac1 {[%clk 0:01:01]}  Qf7 {[%clk 0:01:05]} 22. Na4 {[%clk 0:00:59]}  Qh5 {[%clk 0:00:55]} 23. Nxc5 {[%clk 0:00:55]}  bxc5 {[%clk 0:00:56]} 24. Qe3 {[%clk 0:00:50]}  Qg4 {[%clk 0:00:49]} 25. Rd7 {[%clk 0:00:36]}  Re7 {[%clk 0:00:42]} 26. Rcd1 {[%clk 0:00:33]}  Nd4 {[%clk 0:00:40]} 27. Rxe7 {[%clk 0:00:24]}  Nxf3+ {[%clk 0:00:11]} 28. Kh1 {[%clk 0:00:24]}  Nd4 {[%clk 0:00:11]} 29. f3 {[%clk 0:00:21]}  Qh4 {[%clk 0:00:08]} 30. Rxb7 {[%clk 0:00:19]} 1-0


[Site "https://www.chess.com"]

[Event "Titled Tuesday Blitz October 12 2021"]
[White "Zhigalko, Sergei"]
[Black "Mezentsev, Ivan"]
[WhiteFideId "13502956"]
[BlackFideId "13706195"]
[WhiteElo "2662"]
[BlackElo "2295"]
[Result "1-0"]
[Round "02"]
[TimeControl "180+1"]
[Date "2021.10.12"]
[WhiteClock "0:00:13"]
[BlackClock "0:00:06"]

1. e4 {[%clk 0:03:00]}  e6 {[%clk 0:02:58]} 2. d4 {[%clk 0:03:01]}  d5 {[%clk 0:02:58]} 3. e5 {[%clk 0:03:01]}  c5 {[%clk 0:02:55]} 4. c3 {[%clk 0:03:01]}  Nc6 {[%clk 0:02:55]} 5. Nf3 {[%clk 0:03:01]}  Qb6 {[%clk 0:02:55]} 6. a3 {[%clk 0:03:01]}  c4 {[%clk 0:02:55]} 7. Nbd2 {[%clk 0:03:01]}  Na5 {[%clk 0:02:55]} 8. Be2 {[%clk 0:03:01]}  Bd7 {[%clk 0:02:54]} 9. O-O {[%clk 0:03:01]}  h6 {[%clk 0:02:54]} 10. h4 {[%clk 0:02:50]}  O-O-O {[%clk 0:02:53]} 11. h5 {[%clk 0:02:51]}  Ne7 {[%clk 0:02:50]} 12. Rb1 {[%clk 0:02:49]}  Kb8 {[%clk 0:02:48]} 13. Re1 {[%clk 0:02:46]}  g6 {[%clk 0:02:31]} 14. Qc2 {[%clk 0:02:41]}  Rg8 {[%clk 0:02:28]} 15. Nf1 {[%clk 0:02:22]}  Nb3 {[%clk 0:02:24]} 16. Bf4 {[%clk 0:02:19]}  Ba4 {[%clk 0:02:20]} 17. Bd1 {[%clk 0:02:17]}  Nf5 {[%clk 0:02:06]} 18. Qe2 {[%clk 0:02:08]}  g5 {[%clk 0:02:05]} 19. Bh2 {[%clk 0:01:41]}  g4 {[%clk 0:01:59]} 20. N3d2 {[%clk 0:01:40]}  Nxd2 {[%clk 0:01:29]} 21. Qxd2 {[%clk 0:01:31]}  Bxd1 {[%clk 0:01:22]} 22. Qxd1 {[%clk 0:01:03]}  Be7 {[%clk 0:01:19]} 23. Ne3 {[%clk 0:00:56]}  Nxe3 {[%clk 0:01:04]} 24. Rxe3 {[%clk 0:00:56]}  Bg5 {[%clk 0:01:03]} 25. Re1 {[%clk 0:00:54]}  a6 {[%clk 0:00:46]} 26. Qe2 {[%clk 0:00:41]}  Qc6 {[%clk 0:00:45]} 27. Red1 {[%clk 0:00:37]}  Be7 {[%clk 0:00:40]} 28. Bf4 {[%clk 0:00:37]}  Qd7 {[%clk 0:00:24]} 29. g3 {[%clk 0:00:20]}  Bg5 {[%clk 0:00:18]} 30. Qxg4 {[%clk 0:00:20]}  Bxf4 {[%clk 0:00:18]} 31. Qxf4 {[%clk 0:00:20]}  Rg5 {[%clk 0:00:18]} 32. g4 {[%clk 0:00:10]}  Rdg8 {[%clk 0:00:18]} 33. f3 {[%clk 0:00:11]}  Qa4 {[%clk 0:00:17]} 34. Kf2 {[%clk 0:00:10]}  Qc2+ {[%clk 0:00:15]} 35. Qd2 {[%clk 0:00:10]}  Qh7 {[%clk 0:00:15]} 36. Rbc1 {[%clk 0:00:08]}  Qg7 {[%clk 0:00:14]} 37. Rg1 {[%clk 0:00:08]}  f6 {[%clk 0:00:12]} 38. exf6 {[%clk 0:00:04]}  Qxf6 {[%clk 0:00:12]} 39. Ke2 {[%clk 0:00:03]}  e5 {[%clk 0:00:12]} 40. Rcf1 {[%clk 0:00:03]}  exd4 {[%clk 0:00:08]} 41. Qxd4 {[%clk 0:00:04]}  Qe6+ {[%clk 0:00:06]} 42. Kd2 {[%clk 0:00:04]}  Qc6 {[%clk 0:00:05]} 43. Re1 {[%clk 0:00:02]}  Ka8 {[%clk 0:00:05]} 44. Re3 {[%clk 0:00:02]}  Qb5 {[%clk 0:00:05]} 45. Kc1 {[%clk 0:00:02]}  Rd8 {[%clk 0:00:05]} 46. Rge1 {[%clk 0:00:02]}  Rgg8 {[%clk 0:00:05]} 47. Re5 {[%clk 0:00:01]}  Rgf8 {[%clk 0:00:05]} 48. R1e3 {[%clk 0:00:02]}  Qb3 {[%clk 0:00:05]} 49. Re6 {[%clk 0:00:02]}  Qa2 {[%clk 0:00:05]} 50. Kc2 {[%clk 0:00:02]}  Qa1 {[%clk 0:00:04]} 51. Qd1 {[%clk 0:00:02]}  Qa2 {[%clk 0:00:05]} 52. Re7 {[%clk 0:00:03]}  d4 {[%clk 0:00:04]} 53. cxd4 {[%clk 0:00:03]}  Rc8 {[%clk 0:00:04]} 54. Rc3 {[%clk 0:00:02]}  Rfd8 {[%clk 0:00:03]} 55. d5 {[%clk 0:00:02]}  Rd6 {[%clk 0:00:03]} 56. Qd4 {[%clk 0:00:02]}  Rcd8 {[%clk 0:00:02]} 57. Qxc4 {[%clk 0:00:02]}  Rxd5 {[%clk 0:00:02]} 58. Qxa2 {[%clk 0:00:02]}  Rd2+ {[%clk 0:00:02]} 59. Kb3 {[%clk 0:00:03]}  R2d6 {[%clk 0:00:01]} 60. Qb1 {[%clk 0:00:03]}  Rb6+ {[%clk 0:00:02]} 61. Ka2 {[%clk 0:00:04]}  Rbd6 {[%clk 0:00:02]} 62. Qe4 {[%clk 0:00:04]}  Rb6 {[%clk 0:00:03]} 63. Rb3 {[%clk 0:00:05]}  Rxb3 {[%clk 0:00:03]} 64. Kxb3 {[%clk 0:00:06]}  Rb8 {[%clk 0:00:04]} 65. f4 {[%clk 0:00:07]}  Ka7 {[%clk 0:00:04]} 66. Qe3+ {[%clk 0:00:07]}  Ka8 {[%clk 0:00:05]} 67. f5 {[%clk 0:00:08]}  Rc8 {[%clk 0:00:05]} 68. Re8 {[%clk 0:00:09]}  Rxe8 {[%clk 0:00:04]} 69. Qxe8+ {[%clk 0:00:09]}  Ka7 {[%clk 0:00:05]} 70. Qe3+ {[%clk 0:00:10]}  Ka8 {[%clk 0:00:06]} 71. f6 {[%clk 0:00:11]}  Kb8 {[%clk 0:00:05]} 72. f7 {[%clk 0:00:11]}  Kc7 {[%clk 0:00:06]} 73. Qc5+ {[%clk 0:00:12]}  Kd7 {[%clk 0:00:06]} 74. f8=Q {[%clk 0:00:13]}  b6 {[%clk 0:00:06]} 75. Qcd6# {[%clk 0:00:13]} 1-0


[Site "https://www.chess.com"]

[Event "Titled Tuesday Blitz October 12 2021"]
[White "Amgalantengis, Enkh-Amgalan"]
[Black "Hansen, Eric"]
[WhiteFideId "4903536"]
[BlackFideId "2606771"]
[WhiteElo "1716"]
[BlackElo "2568"]
[Result "0-1"]
[Round "03"]
[TimeControl "180+1"]
[Date "2021.10.12"]
[WhiteClock "0:02:42"]
[BlackClock "0:01:41"]

1. e4 {[%clk 0:03:00]}  e5 {[%clk 0:02:54]} 2. Nf3 {[%clk 0:03:01]}  Nc6 {[%clk 0:02:51]} 3. Bc4 {[%clk 0:03:00]}  Bc5 {[%clk 0:02:48]} 4. c3 {[%clk 0:03:00]}  Nf6 {[%clk 0:02:47]} 5. d4 {[%clk 0:03:00]}  exd4 {[%clk 0:02:44]} 6. cxd4 {[%clk 0:03:01]}  Bb4+ {[%clk 0:02:43]} 7. Bd2 {[%clk 0:02:57]}  Bxd2+ {[%clk 0:02:34]} 8. Nbxd2 {[%clk 0:02:58]}  d5 {[%clk 0:02:14]} 9. exd5 {[%clk 0:02:59]}  Ne7 {[%clk 0:02:07]} 10. O-O {[%clk 0:02:54]}  O-O {[%clk 0:02:06]} 11. Re1 {[%clk 0:02:52]}  Nexd5 {[%clk 0:02:06]} 12. Ne5 {[%clk 0:02:51]}  c6 {[%clk 0:02:07]} 13. Ne4 {[%clk 0:02:51]}  Nxe4 {[%clk 0:02:07]} 14. Rxe4 {[%clk 0:02:50]}  Bf5 {[%clk 0:02:06]} 15. Re1 {[%clk 0:02:45]}  Be6 {[%clk 0:02:03]} 16. Qb3 {[%clk 0:02:45]}  Qb6 {[%clk 0:01:57]} 17. Bxd5 {[%clk 0:02:43]}  cxd5 {[%clk 0:01:40]} 18. Qxb6 {[%clk 0:02:41]}  axb6 {[%clk 0:01:41]} 19. a3 {[%clk 0:02:42]}  Rfc8 {[%clk 0:01:41]} 0-1


[Site "https://www.chess.com"]

[Event "Titled Tuesday Blitz October 12 2021"]
[White "Aslanov, Umid"]
[Black "Maksimovic, Bojan"]
[WhiteFideId "13412620"]
[BlackFideId "14408120"]
[WhiteElo "1796"]
[BlackElo "2439"]
[Result "0-1"]
[Round "03"]
[TimeControl "180+1"]
[Date "2021.10.12"]
[WhiteClock "0:00:10"]
[BlackClock "0:00:10"]

1. e4 {[%clk 0:03:00]}  c5 {[%clk 0:03:00]} 2. Nf3 {[%clk 0:03:00]}  Nc6 {[%clk 0:03:00]} 3. d4 {[%clk 0:03:01]}  cxd4 {[%clk 0:03:00]} 4. Nxd4 {[%clk 0:03:02]}  Nf6 {[%clk 0:03:00]} 5. Nc3 {[%clk 0:03:02]}  e5 {[%clk 0:03:01]} 6. Ndb5 {[%clk 0:03:03]}  d6 {[%clk 0:03:01]} 7. Bg5 {[%clk 0:03:03]}  a6 {[%clk 0:03:01]} 8. Na3 {[%clk 0:03:04]}  b5 {[%clk 0:03:02]} 9. Nd5 {[%clk 0:03:04]}  Be7 {[%clk 0:03:02]} 10. Bxf6 {[%clk 0:03:05]}  Bxf6 {[%clk 0:03:03]} 11. c3 {[%clk 0:03:06]}  O-O {[%clk 0:03:01]} 12. Nc2 {[%clk 0:03:06]}  Rb8 {[%clk 0:03:01]} 13. a4 {[%clk 0:02:56]}  bxa4 {[%clk 0:02:57]} 14. Rxa4 {[%clk 0:02:57]}  Rxb2 {[%clk 0:02:43]} 15. Bxa6 {[%clk 0:02:57]}  Be6 {[%clk 0:02:05]} 16. Nxf6+ {[%clk 0:02:29]}  Qxf6 {[%clk 0:02:03]} 17. Bc4 {[%clk 0:02:03]}  Nb4 {[%clk 0:01:18]} 18. cxb4 {[%clk 0:01:22]}  Bxc4 {[%clk 0:01:15]} 19. Qc1 {[%clk 0:01:22]}  Qg6 {[%clk 0:00:15]} 20. Qxb2 {[%clk 0:00:24]}  Qxg2 {[%clk 0:00:15]} 21. Ne3 {[%clk 0:00:18]}  Qxh1+ {[%clk 0:00:15]} 22. Kd2 {[%clk 0:00:19]}  Qxe4 {[%clk 0:00:14]} 23. b5 {[%clk 0:00:15]}  Qd3+ {[%clk 0:00:13]} 24. Kc1 {[%clk 0:00:15]}  Bxb5 {[%clk 0:00:13]} 25. Rb4 {[%clk 0:00:10]}  Rc8+ {[%clk 0:00:13]} 26. Nc2 {[%clk 0:00:11]}  Qf1+ {[%clk 0:00:10]} 27. Kd2 {[%clk 0:00:11]}  Qxf2+ {[%clk 0:00:11]} 28. Kd1 {[%clk 0:00:10]}  Be2+ {[%clk 0:00:10]} 29. Kc1 {[%clk 0:00:10]}  Qe1# {[%clk 0:00:10]} 0-1


[Site "https://www.chess.com"]

[Event "Titled Tuesday Blitz October 12 2021"]
[White "Bluebaum, Matthias"]
[Black "Djordjevic, Vuk"]
[WhiteFideId "24651516"]
[BlackFideId "902098"]
[WhiteElo "2681"]
[BlackElo "2463"]
[Result "0-1"]
[Round "03"]
[TimeControl "180+1"]
[Date "2021.10.12"]
[WhiteClock "0:00:27"]
[BlackClock "0:00:07"]

1. d4 {[%clk 0:03:00]}  Nf6 {[%clk 0:02:59]} 2. Nf3 {[%clk 0:03:00]}  e6 {[%clk 0:03:00]} 3. Bf4 {[%clk 0:03:01]}  d5 {[%clk 0:03:00]} 4. e3 {[%clk 0:03:01]}  Bd6 {[%clk 0:03:00]} 5. Ne5 {[%clk 0:03:02]}  O-O {[%clk 0:02:57]} 6. Nd2 {[%clk 0:03:02]}  c5 {[%clk 0:02:55]} 7. c3 {[%clk 0:03:02]}  Qc7 {[%clk 0:02:53]} 8. Bd3 {[%clk 0:03:02]}  Nc6 {[%clk 0:02:42]} 9. Ndf3 {[%clk 0:03:02]}  b6 {[%clk 0:02:37]} 10. h4 {[%clk 0:03:00]}  Bb7 {[%clk 0:02:34]} 11. h5 {[%clk 0:03:01]}  h6 {[%clk 0:02:29]} 12. g4 {[%clk 0:02:58]}  Ne4 {[%clk 0:02:27]} 13. Nxc6 {[%clk 0:02:52]}  Bxf4 {[%clk 0:02:10]} 14. exf4 {[%clk 0:02:53]}  Bxc6 {[%clk 0:02:01]} 15. Qc1 {[%clk 0:02:53]}  f5 {[%clk 0:01:52]} 16. g5 {[%clk 0:02:44]}  hxg5 {[%clk 0:01:45]} 17. Nxg5 {[%clk 0:02:40]}  Nxg5 {[%clk 0:01:36]} 18. fxg5 {[%clk 0:02:41]}  e5 {[%clk 0:01:36]} 19. dxe5 {[%clk 0:02:25]}  Qxe5+ {[%clk 0:01:37]} 20. Qe3 {[%clk 0:02:26]}  Qd6 {[%clk 0:00:38]} 21. O-O-O {[%clk 0:02:18]}  d4 {[%clk 0:00:38]} 22. Bc4+ {[%clk 0:02:18]}  Kh8 {[%clk 0:00:38]} 23. Rhf1 {[%clk 0:01:59]}  Rae8 {[%clk 0:00:37]} 24. Qd2 {[%clk 0:01:57]}  Bf3 {[%clk 0:00:34]} 25. Rde1 {[%clk 0:01:55]}  Bxh5 {[%clk 0:00:33]} 26. f4 {[%clk 0:01:36]}  g6 {[%clk 0:00:30]} 27. cxd4 {[%clk 0:01:31]}  Qxd4 {[%clk 0:00:20]} 28. Qxd4+ {[%clk 0:01:32]}  cxd4 {[%clk 0:00:21]} 29. Kd2 {[%clk 0:01:33]}  Kg7 {[%clk 0:00:18]} 30. Bb5 {[%clk 0:01:30]}  Re4 {[%clk 0:00:17]} 31. Bd3 {[%clk 0:01:30]}  Ree8 {[%clk 0:00:15]} 32. Rxe8 {[%clk 0:01:30]}  Rxe8 {[%clk 0:00:16]} 33. Rc1 {[%clk 0:01:31]}  Re7 {[%clk 0:00:14]} 34. Rc4 {[%clk 0:01:27]}  Rd7 {[%clk 0:00:14]} 35. Rc8 {[%clk 0:01:28]}  Bf3 {[%clk 0:00:13]} 36. Bb5 {[%clk 0:01:22]}  Re7 {[%clk 0:00:11]} 37. Rd8 {[%clk 0:01:22]}  Re4 {[%clk 0:00:12]} 38. Rd7+ {[%clk 0:01:18]}  Kf8 {[%clk 0:00:12]} 39. Rd6 {[%clk 0:01:14]}  Rxf4 {[%clk 0:00:11]} 40. Rxg6 {[%clk 0:01:15]}  Be4 {[%clk 0:00:12]} 41. Bc4 {[%clk 0:00:41]}  Rf2+ {[%clk 0:00:11]} 42. Ke1 {[%clk 0:00:42]}  Rxb2 {[%clk 0:00:08]} 43. Rg8+ {[%clk 0:00:42]}  Ke7 {[%clk 0:00:08]} 44. Rg7+ {[%clk 0:00:43]}  Kd6 {[%clk 0:00:07]} 45. g6 {[%clk 0:00:38]}  d3 {[%clk 0:00:07]} 46. Bb3 {[%clk 0:00:25]}  d2+ {[%clk 0:00:05]} 47. Ke2 {[%clk 0:00:26]}  Bf3+ {[%clk 0:00:06]} 48. Kxf3 {[%clk 0:00:27]}  Rxb3+ {[%clk 0:00:06]} 49. axb3 {[%clk 0:00:26]}  d1=Q+ {[%clk 0:00:06]} 50. Ke3 {[%clk 0:00:27]}  Qc1+ {[%clk 0:00:06]} 51. Kf2 {[%clk 0:00:27]}  Qb2+ {[%clk 0:00:06]} 52. Kf3 {[%clk 0:00:27]}  Qxg7 {[%clk 0:00:07]} 0-1


[Site "https://www.chess.com"]

[Event "Titled Tuesday Blitz October 12 2021"]
[White "Budrewicz, Krzysztof"]
[Black "Rustemov, Alexander"]
[WhiteFideId "1127950"]
[BlackFideId "4119002"]
[WhiteElo "2242"]
[BlackElo "2805"]
[Result "1/2-1/2"]
[Round "03"]
[TimeControl "180+1"]
[Date "2021.10.12"]
[WhiteClock "0:00:35"]
[BlackClock "0:00:05"]

1. d4 {[%clk 0:03:00]}  d5 {[%clk 0:02:59]} 2. c4 {[%clk 0:03:00]}  dxc4 {[%clk 0:03:00]} 3. e4 {[%clk 0:02:59]}  Nf6 {[%clk 0:02:59]} 4. e5 {[%clk 0:02:58]}  Nd5 {[%clk 0:02:59]} 5. Bxc4 {[%clk 0:02:58]}  Nb6 {[%clk 0:02:59]} 6. Bd3 {[%clk 0:02:58]}  Nc6 {[%clk 0:03:00]} 7. Ne2 {[%clk 0:02:57]}  Be6 {[%clk 0:03:00]} 8. Nbc3 {[%clk 0:02:53]}  Qd7 {[%clk 0:03:00]} 9. Be3 {[%clk 0:02:53]}  O-O-O {[%clk 0:02:56]} 10. Be4 {[%clk 0:02:53]}  Bc4 {[%clk 0:02:29]} 11. Qc2 {[%clk 0:02:43]}  Nb4 {[%clk 0:02:17]} 12. Qb1 {[%clk 0:02:43]}  e6 {[%clk 0:02:09]} 13. O-O {[%clk 0:02:42]}  Kb8 {[%clk 0:02:07]} 14. Rd1 {[%clk 0:02:40]}  N4d5 {[%clk 0:02:01]} 15. Qc2 {[%clk 0:02:37]}  Be7 {[%clk 0:01:56]} 16. b3 {[%clk 0:02:33]}  Ba6 {[%clk 0:01:52]} 17. a4 {[%clk 0:02:33]}  c6 {[%clk 0:01:36]} 18. a5 {[%clk 0:02:33]}  Na8 {[%clk 0:01:36]} 19. Nxd5 {[%clk 0:02:29]}  cxd5 {[%clk 0:01:36]} 20. Bd3 {[%clk 0:02:29]}  Rc8 {[%clk 0:01:35]} 21. Qd2 {[%clk 0:02:27]}  Bxd3 {[%clk 0:01:30]} 22. Qxd3 {[%clk 0:02:27]}  Nc7 {[%clk 0:01:23]} 23. f4 {[%clk 0:02:24]}  g6 {[%clk 0:01:22]} 24. g4 {[%clk 0:02:23]}  Qb5 {[%clk 0:01:18]} 25. f5 {[%clk 0:02:20]}  Qxd3 {[%clk 0:01:09]} 26. Rxd3 {[%clk 0:02:21]}  gxf5 {[%clk 0:01:07]} 27. gxf5 {[%clk 0:02:20]}  Rhg8+ {[%clk 0:01:04]} 28. Kh1 {[%clk 0:02:17]}  Rg4 {[%clk 0:01:03]} 29. Rf1 {[%clk 0:01:57]}  Rcg8 {[%clk 0:01:02]} 30. Ng3 {[%clk 0:01:55]}  a6 {[%clk 0:00:47]} 31. fxe6 {[%clk 0:01:29]}  fxe6 {[%clk 0:00:47]} 32. Bh6 {[%clk 0:01:27]}  R8g6 {[%clk 0:00:40]} 33. Bd2 {[%clk 0:01:21]}  Nb5 {[%clk 0:00:37]} 34. Rf7 {[%clk 0:01:19]}  Rg7 {[%clk 0:00:36]} 35. Rxg7 {[%clk 0:01:20]}  Rxg7 {[%clk 0:00:37]} 36. Nh5 {[%clk 0:01:14]}  Rf7 {[%clk 0:00:26]} 37. Nf4 {[%clk 0:01:12]}  Nc7 {[%clk 0:00:24]} 38. Kg2 {[%clk 0:01:10]}  Bg5 {[%clk 0:00:24]} 39. Nh5 {[%clk 0:01:09]}  Bxd2 {[%clk 0:00:21]} 40. Rxd2 {[%clk 0:01:10]}  Nb5 {[%clk 0:00:18]} 41. Nf6 {[%clk 0:01:10]}  Na7 {[%clk 0:00:16]} 42. Rd3 {[%clk 0:01:07]}  Nc6 {[%clk 0:00:16]} 43. Kf2 {[%clk 0:01:00]}  Nxa5 {[%clk 0:00:16]} 44. Rh3 {[%clk 0:01:00]}  Nc6 {[%clk 0:00:15]} 45. Ke3 {[%clk 0:01:00]}  Kc7 {[%clk 0:00:12]} 46. Rxh7 {[%clk 0:01:00]}  Rxh7 {[%clk 0:00:12]} 47. Nxh7 {[%clk 0:01:01]}  Kd7 {[%clk 0:00:13]} 48. Nf6+ {[%clk 0:00:57]}  Ke7 {[%clk 0:00:13]} 49. h4 {[%clk 0:00:57]}  Na5 {[%clk 0:00:13]} 50. b4 {[%clk 0:00:53]}  Nc6 {[%clk 0:00:13]} 51. b5 {[%clk 0:00:53]}  axb5 {[%clk 0:00:12]} 52. Kd3 {[%clk 0:00:54]}  Kf7 {[%clk 0:00:12]} 53. Nd7 {[%clk 0:00:53]}  b4 {[%clk 0:00:08]} 54. Nc5 {[%clk 0:00:51]}  b6 {[%clk 0:00:08]} 55. Nd7 {[%clk 0:00:41]}  b3 {[%clk 0:00:08]} 56. Nxb6 {[%clk 0:00:37]}  b2 {[%clk 0:00:08]} 57. Kc2 {[%clk 0:00:38]}  Nxd4+ {[%clk 0:00:08]} 58. Kxb2 {[%clk 0:00:38]}  Nf3 {[%clk 0:00:09]} 59. h5 {[%clk 0:00:33]}  Nxe5 {[%clk 0:00:09]} 60. Kc3 {[%clk 0:00:34]}  Ng4 {[%clk 0:00:07]} 61. Kd4 {[%clk 0:00:34]}  Kf6 {[%clk 0:00:07]} 62. Nxd5+ {[%clk 0:00:33]}  exd5 {[%clk 0:00:05]} 63. Kxd5 {[%clk 0:00:34]}  Kg5 {[%clk 0:00:05]} 64. h6 {[%clk 0:00:35]}  Nxh6 {[%clk 0:00:05]} 1/2-1/2


[Site "https://www.chess.com"]

[Event "Titled Tuesday Blitz October 12 2021"]
[White "Erdogmus, Yagiz Kaan"]
[Black "Visakh N R"]
[WhiteFideId "44599790"]
[BlackFideId "25012223"]
[WhiteElo "1783"]
[BlackElo "2454"]
[Result "1/2-1/2"]
[Round "03"]
[TimeControl "180+1"]
[Date "2021.10.12"]
[WhiteClock "0:00:06"]
[BlackClock "0:00:16"]

1. e4 {[%clk 0:03:00]}  c6 {[%clk 0:02:57]} 2. Nc3 {[%clk 0:03:00]}  d5 {[%clk 0:02:57]} 3. Nf3 {[%clk 0:03:00]}  g6 {[%clk 0:02:49]} 4. h4 {[%clk 0:02:48]}  h6 {[%clk 0:02:46]} 5. d4 {[%clk 0:02:26]}  dxe4 {[%clk 0:02:39]} 6. Nxe4 {[%clk 0:02:25]}  Bg7 {[%clk 0:02:39]} 7. Bc4 {[%clk 0:02:19]}  Bf5 {[%clk 0:02:29]} 8. Ng3 {[%clk 0:02:08]}  Bg4 {[%clk 0:02:28]} 9. c3 {[%clk 0:02:08]}  e6 {[%clk 0:02:24]} 10. h5 {[%clk 0:02:03]}  g5 {[%clk 0:02:22]} 11. Qb3 {[%clk 0:01:48]}  b5 {[%clk 0:02:18]} 12. Be2 {[%clk 0:01:47]}  Ne7 {[%clk 0:02:17]} 13. a4 {[%clk 0:01:47]}  bxa4 {[%clk 0:02:12]} 14. Rxa4 {[%clk 0:01:41]}  Nd7 {[%clk 0:02:11]} 15. Qa3 {[%clk 0:01:05]}  a5 {[%clk 0:01:42]} 16. Bd3 {[%clk 0:00:39]}  O-O {[%clk 0:01:32]} 17. Nh2 {[%clk 0:00:38]}  Bf5 {[%clk 0:01:32]} 18. Nxf5 {[%clk 0:00:38]}  Nxf5 {[%clk 0:01:31]} 19. O-O {[%clk 0:00:35]}  Re8 {[%clk 0:01:27]} 20. Qa1 {[%clk 0:00:34]}  Nc5 {[%clk 0:01:21]} 21. Bxf5 {[%clk 0:00:23]}  Nxa4 {[%clk 0:01:21]} 22. Be4 {[%clk 0:00:24]}  Nb6 {[%clk 0:01:15]} 23. Bxc6 {[%clk 0:00:24]}  a4 {[%clk 0:01:13]} 24. Ng4 {[%clk 0:00:20]}  Rc8 {[%clk 0:01:07]} 25. Bxe8 {[%clk 0:00:20]}  Qxe8 {[%clk 0:01:08]} 26. f4 {[%clk 0:00:21]}  f5 {[%clk 0:01:06]} 27. Ne5 {[%clk 0:00:09]}  Qxh5 {[%clk 0:01:03]} 28. Qa3 {[%clk 0:00:08]}  Bf8 {[%clk 0:00:57]} 29. Qa2 {[%clk 0:00:08]}  Re8 {[%clk 0:00:53]} 30. c4 {[%clk 0:00:08]}  Qe2 {[%clk 0:00:40]} 31. c5 {[%clk 0:00:07]}  Nd5 {[%clk 0:00:39]} 32. Qxa4 {[%clk 0:00:07]}  Re7 {[%clk 0:00:40]} 33. Qd1 {[%clk 0:00:06]}  Qxd1 {[%clk 0:00:28]} 34. Rxd1 {[%clk 0:00:07]}  gxf4 {[%clk 0:00:28]} 35. Kf2 {[%clk 0:00:05]}  Bg7 {[%clk 0:00:28]} 36. Kf3 {[%clk 0:00:06]}  Bxe5 {[%clk 0:00:28]} 37. dxe5 {[%clk 0:00:07]}  Rc7 {[%clk 0:00:29]} 38. Bxf4 {[%clk 0:00:07]}  Rxc5 {[%clk 0:00:29]} 39. Bxh6 {[%clk 0:00:07]}  Rb5 {[%clk 0:00:29]} 40. Rd2 {[%clk 0:00:07]}  Rb3+ {[%clk 0:00:29]} 41. Kf2 {[%clk 0:00:07]}  f4 {[%clk 0:00:28]} 42. Rd4 {[%clk 0:00:06]}  Rxb2+ {[%clk 0:00:28]} 43. Kf3 {[%clk 0:00:06]}  Rb3+ {[%clk 0:00:27]} 44. Kf2 {[%clk 0:00:06]}  Kh7 {[%clk 0:00:26]} 45. Bxf4 {[%clk 0:00:07]}  Kg6 {[%clk 0:00:26]} 46. Bh2 {[%clk 0:00:05]}  Rb2+ {[%clk 0:00:26]} 47. Kf3 {[%clk 0:00:05]}  Rb3+ {[%clk 0:00:26]} 48. Kf2 {[%clk 0:00:05]}  Ne3 {[%clk 0:00:26]} 49. Re4 {[%clk 0:00:03]}  Nd1+ {[%clk 0:00:25]} 50. Kf1 {[%clk 0:00:04]}  Kf5 {[%clk 0:00:24]} 51. Rf4+ {[%clk 0:00:04]}  Kg5 {[%clk 0:00:25]} 52. Rf6 {[%clk 0:00:04]}  Ne3+ {[%clk 0:00:25]} 53. Ke2 {[%clk 0:00:03]}  Ng4 {[%clk 0:00:25]} 54. Bf4+ {[%clk 0:00:04]}  Kh5 {[%clk 0:00:24]} 55. Rxe6 {[%clk 0:00:04]}  Rb2+ {[%clk 0:00:24]} 56. Kf3 {[%clk 0:00:04]}  Rb3+ {[%clk 0:00:24]} 57. Ke4 {[%clk 0:00:05]}  Rb8 {[%clk 0:00:17]} 58. Kf5 {[%clk 0:00:05]}  Rf8+ {[%clk 0:00:17]} 59. Rf6 {[%clk 0:00:06]}  Nxf6 {[%clk 0:00:17]} 60. exf6 {[%clk 0:00:07]}  Kh4 {[%clk 0:00:15]} 61. Bh6 {[%clk 0:00:05]}  Rxf6+ {[%clk 0:00:15]} 62. Kxf6 {[%clk 0:00:05]}  Kg3 {[%clk 0:00:15]} 63. Kf5 {[%clk 0:00:06]}  Kxg2 {[%clk 0:00:16]} 1/2-1/2


[Site "https://www.chess.com"]